[Event "Stare Mesto Open-A 2022"]
[Site "Stare Mesto"]
[Date "2022.08.16"]
[Round "5.8"]
[White "Murko, David"]
[Black "Travnicek, Krystof Mikulas"]
[Result "1-0"]
[ECO "B35"]
[WhiteElo "2213"]
[BlackElo "2138"]
[Annotator "TA"]
[PlyCount "99"]
[EventDate "2022.08.12"]
[EventType "swiss"]
[EventCountry "CZE"]
[SourceTitle "playchess.com"]
[Source "ChessBase"]
[SourceQuality "1"]
[TimeControl "40/5400+30:1800+30"]

{[%evp 14,99,22,23,32,25,19,13,12,8,19,-8,0,0,0,-28,-23,-56,-52,-51,-52,-43,0,0,0,0,0,0,0,-10,110,52,70,78,78,33,87,85,88,88,90,89,80,78,119,91,93,56,60,53,60,65,55,60,61,61,79,66,184,139,154,150,140,101,112,0,132,109,106,0,0,0,0,33,116,107,841,836,731,237,1922,1868,1586,1493,29982,29983,29983,29984]} 1. e4 {[%emt 0:00:02]} c5 {[%emt 0:00:15]} 2. Nf3 {[%emt 0:00:05]} g6 {[%emt 0:00:29]} 3. d4 {[%emt 0:03:34]} cxd4 {[%emt 0:00:12]} 4. Nxd4 {[%emt 0:00:15]} Nc6 {[%emt 0:00:16]} 5. Nc3 {[%emt 0:00:37]} Bg7 {[%emt 0:00:23]} 6. Be3 {[%emt 0:00:05]} Nf6 {[%emt 0:00:30]} 7. Bc4 {[%emt 0:00:59]} O-O {[%emt 0:00:26]} 8. Bb3 {[%emt 0:00:09]} Re8 {[%emt 0:00:50] B35: Sicilian: Accelerated Dragon with 5 Nc3: main line.} 9. h3 {[%emt 0:04:04]} d6 {[%emt 0:01:33]} 10. O-O {[%emt 0:00:58]} Na5 {[%emt 0:01:00] The position is equal.} 11. f4 {[%emt 0:01:19]} b6 {[%emt 0:01:40]} 12. e5 {[%emt 0:18:51]} Nxb3 {[%emt 0:02:17]} 13. axb3 {[%emt 0:11:17]} dxe5 {[%emt 0:02:07]} 14. fxe5 {[%emt 0:00:33]} (14. Ndb5 $5 {[%cal Rf4e5]} Bb7 15. fxe5 $11) 14... Nd5 {[%emt 0:02:32]} 15. Qf3 {[%emt 0:17:12] [#]} Nxe3 $1 {[%emt 0:03:54]} 16. Qxe3 {[%emt 0:00:04]} Bb7 $1 {[%emt 0:07:00]} 17. Nf3 {[%emt 0:00:50] [#]} a6 $146 {[%emt 0:17:53]} ({Predecessor:} 17... Qc7 18. Nb5 Qc6 19. c4 a6 20. Nc3 b5 21. c5 Qe6 22. Ne4 h6 23. Ned2 Rad8 {0-1 (36) Dziewonski,D (2015)-Sopur,L (2413) Sypniewo 2021}) 18. Rad1 {[%emt 0:08:23]} Qc7 {[%emt 0:02:44]} 19. e6 $1 $36 {[%emt 0:00:50][%mdl 2048] White has good play.} fxe6 {[%emt 0:07:07]} 20. Qxe6+ {[%emt 0:02:07]} Kh8 {[%emt 0:00:29]} 21. Nd5 {[%emt 0:07:39] Pair of Knights!} Qg3 {[%emt 0:16:10]} (21... Qxc2 $11 22. Ng5 (22. Qxb6 Rab8 $17) 22... h6) 22. Qxb6 {[%emt 0:02:39]} ({White should try} 22. Nxb6 $16 Rf8 23. Qe1 Qxe1 24. Rfxe1 (24. Rdxe1 Bxf3 25. Nxa8 Bxa8 $11)) 22... Bxd5 {[%emt 0:01:35]} 23. Rxd5 {[%emt 0:00:10]} Bxb2 {[%emt 0:04:33]} 24. Rfd1 {[%emt 0:02:02]} Rac8 {[%emt 0:05:44]} (24... Bf6 $14) 25. Rd8 $16 {[%emt 0:03:24]} Kg7 {[%emt 0:13:26] aiming for ...Rexd8.} 26. Rxe8 {[%emt 0:01:18]} Rxe8 {[%emt 0:00:01]} 27. Qxa6 {[%emt 0:00:26]} Qc7 {[%emt 0:01:59]} 28. Qd3 {[%emt 0:02:13]} Rc8 {[%emt 0:00:59]} 29. Rd2 {[%emt 0:01:49]} ({Reject} 29. Nd4 $6 Qa7 30. Qe4 Bxd4+ 31. Rxd4 Rxc2 32. Qe5+ Kg8 33. Qd5+ Kg7 34. Qe5+ Kg8 35. Qe6+ Kh8 36. Qe5+ Kg8 $11) 29... Bf6 {[%emt 0:00:43]} 30. Kh1 {[%emt 0:00:55]} Ra8 {[%emt 0:01:59]} 31. c4 {[%emt 0:02:12]} Ra1+ {[%emt 0:01:28]} 32. Rd1 {[%emt 0:00:04]} Ra2 {[%emt 0:00:09]} 33. Nd4 {[%emt 0:03:04] Ne6+ is the strong threat.} Qe5 {[%emt 0:03:29] Inhibits Ne6+.} 34. b4 {[%emt 0:03:47][%cal Bb3b4,Bb4b5][%mdl 32]} Rb2 {[%emt 0:01:03]} 35. b5 {[%emt 0:01:23]} Kh6 {[%emt 0:00:33]} (35... h5 $1 $14) 36. Nc6 {[%emt 0:01:09]} Qg5 {[%emt 0:00:22][%csl Gb2][%cal Rg5g2]} 37. Qe4 {[%emt 0:00:21] Active counter play!} Kg7 {[%emt 0:00:34]} 38. Nd8 {[%emt 0:00:48] Hoping for Ne6+.} Qg3 {[%emt 0:00:31] And now ...Be5 would win.} 39. Nc6 {[%emt 0:00:43] Against Be5} (39. Ne6+ $16 Kh6 40. Qf4+ Qxf4 41. Nxf4) 39... h5 {[%emt 0:00:32]} (39... Qg5 $1 $11 {remains equal.}) 40. Rf1 {[%emt 0:01:10]} Rb3 {[%emt 0:00:31]} 41. Rf3 {[%emt 0:13:06]} (41. Nxe7 $2 Be5 42. Qxg6+ (42. Kg1 $2 Qh2+ 43. Kf2 Rb2+ 44. Ke3 Rxg2 $19) 42... Qxg6 43. Nxg6 Kxg6 $19) (41. Qf4 $16) 41... Rxf3 $11 {[%emt 0:01:32]} 42. Qxf3 {[%emt 0:00:07][%mdl 4096] Endgame KQB-KQN} Qe1+ {[%emt 0:02:54]} 43. Kh2 {[%emt 0:00:05]} h4 {[%emt 0:06:08] [#]} (43... e5 $1 $14) 44. b6 $1 $16 {[%emt 0:03:03]} Be5+ $2 {[%emt 0:02:04][%mdl 8192] This move loses the game for Black.} (44... Bc3 $16 45. b7 Be5+ 46. Nxe5 Qxe5+ 47. Kg1 Qe1+ 48. Qf1 Qb4) 45. Nxe5 $18 {[%emt 0:00:06]} Qxe5+ {[%emt 0:00:09]} 46. Kg1 {[%emt 0:00:24] Threatens to win with Qf1.} Qa1+ {[%emt 0:02:02]} (46... Qe1+ 47. Qf1 Qe3+ 48. Qf2 Qc1+ 49. Kh2 Qxc4 50. Qb2+ Kg8) 47. Qf1 {[%emt 0:00:42]} Qd4+ {[%emt 0:02:54]} 48. Qf2 {[%emt 0:00:05]} Qxc4 {[%emt 0:01:21]} 49. Qb2+ {[%emt 0:00:18]} e5 {[%emt 0:03:38]} 50. Qxe5+ {[%emt 0:01:51] Weighted Error Value: White=0.17 (very precise) /Black=0.42} 1-0

[Event "Stare Mesto Open-A 2022"]
[Site "Stare Mesto"]
[Date "2022.08.17"]
[Round "6.1"]
[White "Neuman, Petr"]
[Black "Haba, Petr"]
[Result "1/2-1/2"]
[ECO "D14"]
[WhiteElo "2378"]
[BlackElo "2453"]
[Annotator "TA"]
[PlyCount "42"]
[EventDate "2022.08.12"]
[EventType "swiss"]
[EventCountry "CZE"]
[SourceTitle "playchess.com"]
[Source "ChessBase"]
[SourceQuality "1"]
[TimeControl "40/5400+30:1800+30"]

{[%evp 22,23,0,0]} 1. d4 {[%emt 0:03:39]} d5 {[%emt 0:00:23]} 2. c4 {[%emt 0:00:15]} c6 {[%emt 0:00:38]} 3. cxd5 {[%emt 0:00:21]} cxd5 {[%emt 0:00:16]} 4. Nf3 {[%emt 0:00:16]} Nf6 {[%emt 0:00:41]} 5. Nc3 {[%emt 0:00:44]} Nc6 {[%emt 0:01:19]} 6. Bf4 {[%emt 0:00:31]} Bf5 {[%emt 0:00:50]} 7. e3 {[%emt 0:00:39]} e6 {[%emt 0:01:15]} 8. Bd3 {[%emt 0:00:47]} Bxd3 {[%emt 0:00:13]} 9. Qxd3 {[%emt 0:00:08]} Bd6 {[%emt 0:00:54]} 10. Bxd6 {[%emt 0:00:31]} Qxd6 {[%emt 0:00:05]} 11. O-O {[%emt 0:00:20]} O-O {[%emt 0:00:17]} 12. Rfc1 {[%emt 0:00:24] [#]} {Predecessor:} Rfc8 $146 {D14: Slav Defence: Exchange variation with ...Bf5.} 13. h3 h6 14. Nd2 Nd7 15. a3 a6 16. Rc2 Ne7 17. Rac1 Rc6 18. Ne2 Rac8 19. Rxc6 Rxc6 20. Rxc6 Qxc6 21. Qc3 g5 {½-½ (36) Li,D (2579)-Ma,Q (2645) Hangzhou 2022} 1/2-1/2

[Event "Stare Mesto Open-A 2022"]
[Site "Stare Mesto"]
[Date "2022.08.17"]
[Round "6.2"]
[White "Cerveny, Martin"]
[Black "Babula, Vlastimil"]
[Result "1-0"]
[ECO "D10"]
[WhiteElo "2396"]
[BlackElo "2571"]
[Annotator "TA"]
[PlyCount "123"]
[EventDate "2022.08.12"]
[EventType "swiss"]
[EventCountry "CZE"]
[SourceTitle "playchess.com"]
[Source "ChessBase"]
[SourceQuality "1"]
[TimeControl "40/5400+30:1800+30"]

{[%evp 15,123,18,19,21,19,6,10,18,9,0,5,10,18,0,11,0,13,0,2,0,0,0,8,12,20,18,15,12,15,0,0,0,0,0,0,0,8,13,32,-25,0,0,40,27,35,0,16,14,26,0,19,0,17,0,0,0,54,37,30,42,59,59,59,66,92,90,115,85,115,120,104,100,114,30,61,65,100,131,150,196,297,297,635,569,2315,2292,2017,1733,1740,277,1050,1014,29985,436,417,417,422,408,442,441,29980,29981,29981,29982,29995,29988,29988,29989,29989,29990]} 1. d4 {[%emt 0:00:06]} d5 {[%emt 0:00:23]} 2. c4 {[%emt 0:00:23]} c6 {[%emt 0:00:13]} 3. Nc3 {[%emt 0:01:24]} Nf6 {[%emt 0:00:17]} 4. cxd5 {[%emt 0:00:42]} cxd5 {[%emt 0:00:28]} 5. Bf4 {[%emt 0:00:08]} Nc6 {[%emt 0:00:44]} 6. e3 {[%emt 0:00:10]} a6 {[%emt 0:00:17]} 7. Bd3 {[%emt 0:02:12]} Bg4 {[%emt 0:00:41]} 8. Nge2 {[%emt 0:02:53]} e6 {[%emt 0:00:14]} 9. Bg5 {[%emt 0:00:51] D10: Slav Defence: 3 cxd5 (without early Nf3) and 3 Nc3.} Be7 {[%emt 0:05:39] [#]} 10. f3 $146 {[%emt 0:04:55]} ({Predecessor:} 10. Qb3 Na5 11. Qc2 Bh5 12. Nf4 Bg6 13. Nxg6 hxg6 14. Rc1 Rc8 15. Qe2 Qd7 16. O-O O-O 17. Bxf6 gxf6 {½-½ (34) Cerveny,M (2329)-Caletka,R (2305) Czech Republic 2018}) 10... Bh5 $1 {[%emt 0:00:17]} 11. Nf4 {[%emt 0:00:08] Black must now prevent Bxf6. The position is equal.} Bg6 {[%emt 0:00:33]} 12. Nxg6 {[%emt 0:00:20]} hxg6 {[%emt 0:00:21]} 13. O-O {[%emt 0:20:24]} Bd6 {[%emt 0:11:48]} 14. f4 {[%emt 0:00:33]} Qc7 {[%emt 0:02:12]} 15. h3 {[%emt 0:04:03]} (15. g3 {with more complications.} Nb4 16. Be2 Ne4 17. a3) 15... Ng8 {[%emt 0:12:43]} 16. Qg4 {[%emt 0:02:50][%cal Od3g6]} Nh6 {[%emt 0:05:35]} 17. Bxh6 {[%emt 0:01:19]} Rxh6 {[%emt 0:00:22]} 18. Rac1 {[%emt 0:00:49]} f5 {[%emt 0:11:18]} 19. Qf3 {[%emt 0:07:11]} Kf7 {[%emt 0:01:59]} 20. a3 {[%emt 0:03:21]} Rc8 {[%emt 0:01:40]} 21. Na4 {[%emt 0:07:16]} Rhh8 {[%emt 0:05:00]} 22. b4 {[%cal Bb2b4,Bb4b5][%mdl 32]} Qd8 {[%emt 0:06:38]} 23. Nc5 {[%emt 0:05:12]} Qe7 {[%emt 0:02:37]} 24. Rc2 {[%emt 0:02:11]} a5 {[%emt 0:02:21]} 25. b5 {[%emt 0:03:37]} Nb8 {[%emt 0:01:22][%cal Rd6c5]} 26. Rfc1 {[%emt 0:02:04]} Rc7 {[%emt 0:02:04]} 27. Qf2 {[%emt 0:07:13]} (27. b6 $14 Rc6 28. Bb5 Rxb6 29. Rb1) 27... Rhc8 {[%emt 0:03:44][%cal Rd6c5]} 28. b6 {[%emt 0:01:39]} Rc6 {[%emt 0:00:47][%cal Rd6c5]} (28... Rxc5 $5 29. dxc5 Rxc5 $11) 29. Bb5 {[%emt 0:00:07]} Rxb6 {[%emt 0:02:22]} 30. a4 {[%emt 0:00:08][%cal Oc5b7]} (30. Rb1 $5 {[%cal Rb5e8]}) 30... Nc6 {[%emt 0:01:20]} 31. Nd3 {[%emt 0:00:56][%mdl 1024] White has compensation.} Rc7 {[%emt 0:04:58]} 32. g4 {[%emt 0:00:17]} Kg8 {[%emt 0:03:20]} 33. g5 {[%emt 0:00:32]} Ba3 {[%emt 0:01:38]} 34. Ra1 {[%emt 0:00:38]} Bd6 $1 {[%emt 0:00:19]} 35. Qd2 {[%emt 0:00:21]} Qd8 {[%emt 0:03:50]} (35... Na7 $11) 36. Rac1 $14 {[%emt 0:03:12]} Ba3 {[%emt 0:00:07]} 37. Rb1 {[%emt 0:00:16]} Bd6 {[%emt 0:01:34]} 38. Kg2 {[%emt 0:01:32]} Na7 {[%emt 0:01:28]} 39. Rxc7 {[%emt 0:00:41]} Qxc7 {[%emt 0:00:19]} 40. Rc1 {[%emt 0:00:18]} Nc6 {[%emt 0:00:31]} 41. Nc5 {[%emt 0:30:15]} Qe7 {[%emt 0:32:40]} 42. h4 {[%emt 0:02:45]} Qf7 {[%emt 0:01:45]} 43. Kf2 {[%emt 0:04:15]} Qe7 {[%emt 0:00:34]} 44. Qd1 {[%emt 0:03:55]} (44. Nd3 $1 $16) 44... Qf7 {[%emt 0:02:57]} 45. Qe2 {[%emt 0:03:00]} Bf8 {[%emt 0:00:00] White now steadily converts the win.} 46. Rh1 {[%emt 0:00:00] h5 is the strong threat.} Na7 {[%emt 0:00:00]} 47. h5 $1 {[%emt 0:00:00] 0x0.0002daf87212dp-1022s more active pieces. The black rooks are badly placed.} gxh5 {[%emt 0:00:00]} (47... Nxb5 $142 48. hxg6 Qxg6 $1 49. axb5 e5) 48. Nd7 $18 {[%emt 0:00:00]} Rxb5 {[%emt 0:00:00]} (48... Nxb5 49. Nxb6 Nc3 50. Qxh5 Qxh5 51. Rxh5 Bd6) 49. Ne5 {[%emt 0:00:00]} Qe8 {[%emt 0:00:00][%cal Of8d6]} 50. g6 {[%emt 0:00:00]} (50. axb5 g6 $16) 50... Rb2 {[%emt 0:00:00]} 51. Qxb2 {[%emt 0:00:00] White wants to mate with Qe2.} Nc6 {[%emt 0:00:00]} 52. Nf7 $2 {[%emt 0:00:00]} (52. Qb5) 52... Nd8 $2 {[%emt 0:00:00]} (52... Ne7 53. Ng5 (53. Qxb7 Nxg6 54. Ng5 Be7 $18) 53... Nc8 54. Qxb7 Nd6) 53. Nxd8 {[%emt 0:00:00] White threatens Nf7 and mate.} Qxd8 {[%emt 0:00:00]} 54. Rxh5 {[%emt 0:00:00] KQR-KQB} (54. Qe2 $142 h4 55. Qh5 Bc5 56. Rxh4 Kf8 57. Qh8+ Ke7 58. Qxg7+ Kd6 59. dxc5+ Kc6 60. Rh7) 54... Qe8 {[%emt 0:00:00] [#]} 55. Rg5 {[%emt 0:00:00]} Be7 {[%emt 0:00:00]} 56. Rg1 {[%emt 0:00:00]} Qxa4 {[%emt 0:00:00]} 57. Kf3 {[%emt 0:00:00] Threatens to win with Qh2.} Qb4 {[%emt 0:00:00]} (57... Qe8 $18 58. Qxb7 Bd6) 58. Qh2 {[%emt 0:00:00] White mates.} Bf6 {[%emt 0:00:00]} 59. Rc1 {[%emt 0:00:00]} Kf8 {[%emt 0:00:00]} 60. Rc7 {[%emt 0:00:00][%cal Rh2h8]} Ke8 {[%emt 0:00:00]} 61. Qh8+ {[%emt 0:00:00]} Qf8 {[%emt 0:00:00]} 62. Rc8+ {[%emt 0:00:00][%mdl 64] Skewer.  Weighted Error Value: White=0.28 (precise) /Black=0.47} 1-0

[Event "Stare Mesto Open-A 2022"]
[Site "Stare Mesto"]
[Date "2022.08.17"]
[Round "6.3"]
[White "Sramek, Vojtech"]
[Black "Husek, Martin"]
[Result "1-0"]
[ECO "B46"]
[WhiteElo "2249"]
[BlackElo "2132"]
[Annotator "NA RC"]
[PlyCount "81"]
[EventDate "2022.08.12"]
[EventType "swiss"]
[EventCountry "CZE"]
[SourceTitle "playchess.com"]
[Source "ChessBase"]
[SourceQuality "1"]
[TimeControl "40/5400+30:1800+30"]

1. e4 {[%emt 0:00:04]} c5 {[%emt 0:22:11]} 2. Nf3 {[%emt 0:00:24]} e6 {[%emt 0:00:10]} 3. d4 {[%emt 0:00:09]} cxd4 {[%emt 0:00:05]} 4. Nxd4 {[%emt 0:00:07]} Nc6 {[%emt 0:00:07]} 5. Nc3 {[%emt 0:00:21]} a6 {[%emt 0:00:14]} 6. Be3 {[%emt 0:01:11]} Nf6 {[%emt 0:00:09]} 7. Qf3 {[%emt 0:03:02]} Bb4 {[%emt 0:01:33]} 8. Nxc6 {[%emt 0:05:48]} bxc6 {[%emt 0:01:41]} 9. Bg5 {[%emt 0:07:35]} h6 {[%emt 0:16:55]} 10. Bh4 {[%emt 0:04:22]} d5 {[%emt 0:08:58]} 11. O-O-O {[%emt 0:11:09]} Be7 {[%emt 0:08:26]} 12. g4 {[%emt 0:09:36]} Rb8 {[%emt 0:13:44]} 13. Bg3 {[%emt 0:04:42]} e5 {[%emt 0:04:09]} 14. Bxe5 {[%emt 0:05:47]} Bxg4 {[%emt 0:00:11]} 15. Qg3 {[%emt 0:00:34]} Bxd1 {[%emt 0:01:00]} 16. Bxb8 {[%emt 0:00:15]} Nxe4 {[%emt 0:05:26]} 17. Nxe4 {[%emt 0:02:27]} dxe4 {[%emt 0:00:07]} 18. Bc4 {[%emt 0:03:51]} Bg5+ {[%emt 0:01:25]} 19. Bf4 {[%emt 0:03:38]} Bf3 {[%emt 0:00:12]} 20. Rg1 {[%emt 0:02:25]} Qf6 {[%emt 0:09:22]} 21. Be3 {[%emt 0:04:38]} Bxe3+ {[%emt 0:01:37]} 22. fxe3 {[%emt 0:00:09]} O-O {[%emt 0:00:16]} 23. Bxa6 {[%emt 0:00:43]} Ra8 {[%emt 0:00:49]} 24. Bc4 {[%emt 0:00:41]} Ra5 {[%emt 0:00:04]} 25. Qb8+ {[%emt 0:05:34]} Kh7 {[%emt 0:00:02]} 26. Qc7 {[%emt 0:00:30]} Rg5 {[%emt 0:03:03]} 27. Rf1 {[%emt 0:05:36]} Rf5 {[%emt 0:01:03]} 28. a4 {[%emt 0:01:32]} Qg5 {[%emt 0:00:20]} 29. Re1 {[%emt 0:01:42]} Qh4 {[%emt 0:00:07]} 30. Qg3 {[%emt 0:03:19]} Qd8 {[%emt 0:00:03]} 31. h4 {[%emt 0:02:34]} Rf6 {[%emt 0:00:03]} 32. Qe5 {[%emt 0:01:46]} Qd7 {[%emt 0:00:56]} 33. a5 {[%emt 0:03:22]} Rg6 {[%emt 0:01:19]} 34. a6 {[%emt 0:01:00]} Rg2 {[%emt 0:00:05]} 35. Qd4 {[%emt 0:03:04]} Qc7 {[%emt 0:00:06]} 36. b4 {[%emt 0:01:43]} Rg6 {[%emt 0:00:48]} 37. a7 {[%emt 0:00:41]} Qb7 {[%emt 0:00:08]} 38. Qc5 {[%emt 0:00:43]} f5 {[%emt 0:01:38]} 39. Qf8 {[%emt 0:01:37]} Rf6 {[%emt 0:00:16]} 40. Qg8+ {[%emt 0:00:26]} Kg6 {[%emt 0:00:09]} 41. a8=Q 1-0

[Event "Stare Mesto Open-A 2022"]
[Site "Stare Mesto"]
[Date "2022.08.17"]
[Round "6.4"]
[White "Murko, David"]
[Black "Mojzis, Jaroslav"]
[Result "1-0"]
[ECO "C95"]
[WhiteElo "2213"]
[BlackElo "2108"]
[Annotator "TA"]
[PlyCount "132"]
[EventDate "2022.08.12"]
[EventType "swiss"]
[EventCountry "CZE"]
[SourceTitle "playchess.com"]
[Source "ChessBase"]
[SourceQuality "1"]
[TimeControl "40/5400+30:1800+30"]

{[%evp 21,132,29,45,37,61,71,85,81,89,89,122,97,89,89,87,90,116,93,114,106,123,119,147,131,145,117,131,97,103,103,91,75,87,80,96,63,62,52,64,64,58,73,64,58,63,79,72,0,65,66,95,91,97,91,95,79,97,90,85,0,92,56,85,58,72,58,58,58,58,50,58,58,58,58,58,58,58,10,8,10,10,8,8,15,248,248,194,126,149,93,221,210,274,93,131,127,403,389,552,544,530,487,480,480,480,452,5085,4850,29979,29980,29980,29981,29986]} 1. e4 {[%emt 0:00:02]} e5 {[%emt 0:00:09]} 2. Nf3 {[%emt 0:00:05]} Nc6 {[%emt 0:00:11]} 3. Bb5 {[%emt 0:00:10]} a6 {[%emt 0:00:12]} 4. Ba4 {[%emt 0:00:09]} Nf6 {[%emt 0:00:08]} 5. O-O {[%emt 0:00:09]} Be7 {[%emt 0:00:09]} 6. Re1 {[%emt 0:00:18]} b5 {[%emt 0:00:10]} 7. Bb3 {[%emt 0:00:04]} d6 {[%emt 0:00:11]} 8. c3 {[%emt 0:00:09]} O-O {[%emt 0:00:10]} 9. h3 {[%emt 0:00:05]} Nb8 {[%emt 0:00:12]} 10. d4 {[%emt 0:00:13]} Nbd7 {[%emt 0:00:06]} 11. c4 {[%emt 0:00:20]} Bb7 {[%emt 0:07:13]} 12. Nc3 {[%emt 0:02:53] C95: Closed Ruy Lopez: Breyer Variation with 10 d4.} bxc4 {[%emt 0:08:16]} 13. Bxc4 {[%emt 0:00:35]} h6 {[%emt 0:01:34] [#]} 14. Qc2 $146 {[%emt 0:13:57] White is better.} ({Predecessor:} 14. dxe5 Nxe5 15. Nxe5 dxe5 16. Qe2 Bb4 17. f3 Nh5 18. Rd1 Qh4 19. Be3 Nf4 20. Qf2 {1-0 (44) Baskin,R (2385)-Kraemer,E (2218) Playchess.com INT 2020}) 14... Rb8 {[%emt 0:01:12]} 15. Be3 {[%emt 0:01:49]} Nh7 {[%emt 0:16:12]} 16. dxe5 {[%emt 0:06:19]} Nxe5 {[%emt 0:02:22]} 17. Nxe5 {[%emt 0:00:23]} dxe5 {[%emt 0:00:07]} 18. Rad1 {[%emt 0:00:58]} Qc8 {[%emt 0:00:30]} 19. Nd5 {[%emt 0:02:42]} Bd6 {[%emt 0:04:54]} 20. a3 {[%emt 0:17:56]} Re8 {[%emt 0:01:11]} 21. b4 {[%emt 0:01:57]} Nf8 {[%emt 0:03:19][%cal Bh7f8,Bf8d7,Bd7f6,Bf6h5][%mdl 32]} 22. Qe2 {[%emt 0:06:32]} Re6 {[%emt 0:14:54]} 23. h4 {[%emt 0:15:54] 0x0.0019ee2d3fe3dp-1022s more active pieces.} Nd7 {[%emt 0:05:23]} 24. Rc1 {[%emt 0:05:03][%cal Od5c7] And now Nxc7! would win.} Nf6 {[%emt 0:02:02]} 25. Nc3 {[%emt 0:06:08]} Re8 {[%emt 0:01:25]} 26. f3 {[%emt 0:01:19] Prevents Qg4.} Nh5 {[%emt 0:03:18]} 27. Qa2 {[%emt 0:02:46]} Qd7 {[%emt 0:00:39]} 28. Ne2 {[%emt 0:00:36]} Qe7 {[%emt 0:02:54]} 29. g3 {[%emt 0:02:06][%cal Bg2g3,Bg3g4][%mdl 32]} Rf8 {[%emt 0:01:23]} 30. g4 {[%emt 0:04:39]} (30. Kg2 {feels hotter.} Qf6 31. Bd5 Bc8 32. Ba7) 30... Nf4 {[%emt 0:03:02]} 31. Nxf4 {[%emt 0:00:06]} exf4 {[%emt 0:00:13]} 32. Bf2 {[%emt 0:00:06]} Qf6 {[%emt 0:02:11]} 33. Red1 {[%emt 0:01:27]} Be5 {[%emt 0:01:09][%cal Oa6a5]} 34. Rd2 {[%emt 0:03:00]} ({Better is} 34. Qe2 $16) 34... Rbd8 {[%emt 0:05:48]} (34... Bxe4 $11 35. fxe4 f3) 35. Rcd1 $14 {[%emt 0:00:11]} Rd6 {[%emt 0:03:41]} 36. Rxd6 {[%emt 0:01:08]} Bxd6 {[%emt 0:01:40]} 37. Qe2 {[%emt 0:00:59]} Ra8 {[%emt 0:02:21]} 38. Qd2 {[%emt 0:00:48]} Re8 {[%emt 0:02:33]} 39. Qd3 {[%emt 0:00:40]} Ra8 {[%emt 0:01:33]} 40. Qd2 {[%emt 0:00:42]} (40. Bd5 $16 Bxd5 41. Qxd5) 40... g6 {[%emt 0:01:57]} (40... Re8 $1 $11 {remains equal.}) 41. Be1 {[%emt 0:11:08]} Rd8 {[%emt 0:03:13][%cal Od6c5]} 42. Qe2 {[%emt 0:05:27]} Be5 {[%emt 0:07:11]} 43. Rxd8+ {[%emt 0:07:25]} Qxd8 {[%emt 0:00:15]} 44. Qd3 {[%emt 0:00:23]} ({Much worse is} 44. Bxa6 Bxa6 45. Qxa6 Qd1 $11) 44... Qxd3 {[%emt 0:01:11]} 45. Bxd3 {[%emt 0:00:03][%mdl 4096] Endgame KBB-KBB} Kf8 {[%emt 0:00:27]} 46. Kf2 {[%emt 0:02:09]} Ke7 {[%emt 0:00:17]} 47. Ke2 {[%emt 0:00:33]} h5 {[%emt 0:01:53]} 48. gxh5 {[%emt 0:00:53]} gxh5 {[%emt 0:00:08]} 49. b5 {[%emt 0:00:53]} (49. Bc4 $14) 49... axb5 $11 {[%emt 0:01:30]} 50. Bxb5 {[%emt 0:00:04]} c6 {[%emt 0:03:55]} 51. Bc4 {[%emt 0:00:25] Threatens to win with a4.} Bc8 $1 {[%emt 0:04:02]} 52. a4 {[%emt 0:01:23][%cal Ba3a4,Ba4a5][%mdl 32]} f5 $2 {[%emt 0:00:29]} (52... Be6 $11 53. Kd3 Kd7) 53. exf5 $1 $18 {[%emt 0:00:37]} Bxf5 {[%emt 0:00:06]} 54. Bd3 {[%emt 0:03:05]} (54. a5 $1 $18) 54... Be6 {[%emt 0:01:48] [#]} 55. Bg6 {[%emt 0:02:05]} (55. a5 $142 $1 {[%cal Ra5a6]}) 55... Bb3 {[%emt 0:04:47] [#]} (55... c5 $16) 56. a5 $1 {[%emt 0:00:36]} Bc4+ {[%emt 0:01:15]} 57. Kd2 $2 {[%emt 0:01:01]} (57. Bd3 $18 {is the precise move to win.} Bxd3+ 58. Kxd3) 57... Bd4 {[%emt 0:01:41]} 58. Bxh5 {[%emt 0:00:45] Strongly threatening Bg6.} Kd6 $2 {[%emt 0:00:32][%mdl 8192]} (58... Kf6 $16 59. Bg4 Ba6) 59. Bg6 {[%emt 0:00:53]} c5 {[%emt 0:01:11]} (59... Kd7 $142 60. h5 Bg7) 60. h5 {[%emt 0:00:46]} Bg7 {[%emt 0:01:35]} 61. Bd3 {[%emt 0:02:10]} Bf7 {[%emt 0:00:17]} 62. Be4 {[%emt 0:00:48] aiming for a6.} Kc7 {[%emt 0:00:34]} 63. Bf2 {[%emt 0:01:19]} Be8 {[%emt 0:05:02]} (63... Bf8 $142 64. Bh4 Kb8) 64. Bxc5 {[%emt 0:00:19]} Bc6 {[%emt 0:00:27]} 65. Bxc6 {[%emt 0:00:24]} Kxc6 {[%emt 0:00:05] [#]} 66. a6 $1 {[%emt 0:00:22]} Kd5 {Weighted Error Value: White=0.15 (very precise) /Black=0.38} (66... Bh6 67. Kd3) 1-0

[Event "Stare Mesto Open-A 2022"]
[Site "Stare Mesto"]
[Date "2022.08.17"]
[Round "6.5"]
[White "Skalsky, Alexandr"]
[Black "Kostka, Vit"]
[Result "0-1"]
[ECO "B40"]
[WhiteElo "2187"]
[BlackElo "2168"]
[Annotator "NA RC"]
[PlyCount "72"]
[EventDate "2022.08.12"]
[EventType "swiss"]
[EventCountry "CZE"]
[SourceTitle "playchess.com"]
[Source "ChessBase"]
[SourceQuality "1"]
[TimeControl "40/5400+30:1800+30"]

1. e4 {[%emt 0:00:04]} c5 {[%emt 0:00:12]} 2. Nf3 {[%emt 0:00:04]} e6 {[%emt 0:00:09]} 3. d4 {[%emt 0:00:04]} cxd4 {[%emt 0:00:06]} 4. Nxd4 {[%emt 0:00:04]} Nf6 {[%emt 0:00:07]} 5. Nc3 {[%emt 0:00:26]} Nc6 {[%emt 0:00:15]} 6. a3 {[%emt 0:00:30]} d6 {[%emt 0:01:22]} 7. Be3 {[%emt 0:00:19]} Be7 {[%emt 0:00:46]} 8. f4 {[%emt 0:00:24]} Qc7 {[%emt 0:02:20]} 9. Qf3 {[%emt 0:02:30]} O-O {[%emt 0:04:49]} 10. Nb3 {[%emt 0:03:02]} a6 {[%emt 0:05:18]} 11. g4 {[%emt 0:01:33]} Na5 {[%emt 0:03:17]} 12. Nxa5 {[%emt 0:04:52]} Qxa5 {[%emt 0:00:13]} 13. Bd3 {[%emt 0:00:07]} b5 {[%emt 0:04:34]} 14. e5 {[%emt 0:11:11]} Nd5 {[%emt 0:02:20]} 15. Bd2 {[%emt 0:14:26]} Qc7 {[%emt 0:03:30]} 16. Nxd5 {[%emt 0:07:27]} exd5 {[%emt 0:01:24]} 17. O-O-O {[%emt 0:01:56]} dxe5 {[%emt 0:02:19]} 18. fxe5 {[%emt 0:00:45]} Rb8 {[%emt 0:02:44]} 19. Rhf1 {[%emt 0:19:42]} b4 {[%emt 0:04:14]} 20. Qh3 {[%emt 0:08:34]} g6 {[%emt 0:11:57]} 21. axb4 {[%emt 0:00:02]} Bxb4 {[%emt 0:00:51]} 22. Rde1 {[%emt 0:05:01]} Bxd2+ {[%emt 0:02:49]} 23. Kxd2 {[%emt 0:00:01]} Qa5+ {[%emt 0:00:23]} 24. Kc1 {[%emt 0:00:39]} Qb4 {[%emt 0:00:48]} 25. b3 {[%emt 0:03:33]} Qc3 {[%emt 0:03:14]} 26. Kd1 {[%emt 0:06:28]} Rb4 {[%emt 0:01:32]} 27. e6 {[%emt 0:03:06]} Bxe6 {[%emt 0:18:58]} 28. Rxe6 {[%emt 0:00:01]} fxe6 {[%emt 0:01:48]} 29. Rxf8+ {[%emt 0:00:06]} Kxf8 {[%emt 0:00:11]} 30. g5 {[%emt 0:00:49]} Qa1+ {[%emt 0:01:37]} 31. Kd2 {[%emt 0:02:29]} Qe5 {[%emt 0:01:20]} 32. Qxh7 {[%emt 0:00:41]} Qxg5+ {[%emt 0:00:38]} 33. Kc3 {[%emt 0:00:01]} Rh4 {[%emt 0:01:08]} 34. Qc7 {[%emt 0:02:06]} Qf6+ {[%emt 0:00:15]} 35. Kd2 {[%emt 0:00:01]} Qf2+ {[%emt 0:01:21]} 36. Kd1 {[%emt 0:03:04]} Qg1+ {[%emt 0:00:16]} 0-1